[Event "Championnat du monde jeunes U10F"]
[Date "2024.11.19"]
[White "Xin, Lisa J."]
[Black "Sobirova, Mumtozbegim"]
[WhiteElo "1602"]
[BlackElo "1476"]
[Round "5.29"]
[Result "0-1"]
[TimeControl "5400+30"]

1. d4 {[%clk 1:30:57]} 1... d5 {[%clk 1:30:41]} 2. Nf3 {[%clk 1:31:11]} 2... Nf6
{[%clk 1:30:44]} 3. e3 {[%clk 1:31:30]} 3... e6 {[%clk 1:30:56]} 4. Bd3 {[%clk
1:31:52]} 4... c5 {[%clk 1:30:34]} 5. b3 {[%clk 1:32:10]} 5... Nc6 {[%clk
1:30:13]} 6. Bb2 {[%clk 1:32:27]} 6... Bd6 {[%clk 1:29:55]} 7. O-O {[%clk
1:32:19]} 7... O-O {[%clk 1:29:27]} 8. Nbd2 {[%clk 1:32:28]} 8... Qc7 {[%clk
1:26:58]} 9. a3 {[%clk 1:32:19]} 9... cxd4 {[%clk 1:25:56]} 10. exd4 {[%clk
1:32:32]} 10... a6 {[%clk 1:25:11]} 11. Qe2 {[%clk 1:31:18]} 11... Re8 {[%clk
1:24:24]} 12. Ne5 {[%clk 1:31:09]} 12... b5 {[%clk 1:17:21]} 13. f4 {[%clk
1:26:32]} 13... b4 {[%clk 1:15:30]} 14. a4 {[%clk 1:24:58]} 14... Ne7 {[%clk
1:10:41]} 15. g4 {[%clk 1:07:39]} 15... Ng6 {[%clk 1:03:13]} 16. g5 {[%clk
1:00:25]} 16... Nd7 {[%clk 1:02:08]} 17. Qg4 {[%clk 0:49:06]} 17... f5 {[%clk
0:47:17]} 18. gxf6 {[%clk 0:46:01]} 18... Nxf6 {[%clk 0:47:17]} 19. Qg2 {[%clk
0:31:58]} 19... Nh4 {[%clk 0:44:58]} 20. Qg5 {[%clk 0:29:40]} 20... Nf5 {[%clk
0:44:52]} 21. Rf2 {[%clk 0:26:32]} 21... Rb8 {[%clk 0:36:15]} 22. Re1 {[%clk
0:23:57]} 22... h6 {[%clk 0:26:35]} 23. Qg6 {[%clk 0:20:21]} 23... Nh4 {[%clk
0:26:18]} 24. Qg3 {[%clk 0:20:23]} 24... Nf5 {[%clk 0:26:32]} 25. Bxf5 {[%clk
0:19:40]} 25... exf5 {[%clk 0:26:34]} 26. Rg2 {[%clk 0:18:53]} 26... Ne4 {[%clk
0:25:10]} 27. Nxe4 {[%clk 0:18:47]} 27... dxe4 {[%clk 0:24:14]} 28. d5 {[%clk
0:14:12]} 28... g5 {[%clk 0:20:02]} 29. Qh3 {[%clk 0:10:11]} 29... g4 {[%clk
0:18:24]} 30. Qxh6 {[%clk 0:10:12]} 30... Qb6+ {[%clk 0:17:47]} 31. Kh1 {[%clk
0:10:01]} 31... Bxe5 {[%clk 0:17:07]} 32. Qxb6 {[%clk 0:10:19]} 32... Rxb6
{[%clk 0:17:23]} 33. Bxe5 {[%clk 0:09:17]} 33... Bb7 {[%clk 0:16:48]} 34. Rd1
{[%clk 0:08:07]} 34... Rg6 {[%clk 0:15:54]} 35. Kg1 {[%clk 0:07:26]} 35... Rd8
{[%clk 0:15:07]} 36. d6 {[%clk 0:06:46]} 36... e3 {[%clk 0:15:03]} 37. Rg3
{[%clk 0:05:43]} 37... e2 {[%clk 0:14:47]} 38. Rc1 {[%clk 0:05:14]} 38... Bf3
{[%clk 0:14:16]} 39. Kf2 {[%clk 0:04:58]} 39... Rc8 {[%clk 0:11:39]} 40. c4
{[%clk 0:03:50]} 40... bxc3 {[%clk 0:10:41]} 41. Rxc3 {[%clk 0:04:10]} 41...
Rxc3 {[%clk 0:10:35]} 42. Bxc3 {[%clk 0:04:31]} 42... Rxd6 {[%clk 0:10:52]} 43.
b4 {[%clk 0:03:50]} 43... Rd3 {[%clk 0:10:36]} 44. Be5 {[%clk 0:02:56]} 44...
Rd1 {[%clk 0:10:45]} 45. Rg1 {[%clk 0:03:03]} 45... Rxg1 {[%clk 0:11:01]} 46.
Kxg1 {[%clk 0:03:13]} 46... e1=Q# {[%clk 0:11:19]} 0-1

[Variant "Standard"]
[Site "Europe Echecs"]

[Event "Championnat du monde jeunes U10F"]
[Date "2024.11.20"]
[White "Zhumambayeva Aliya"]
[Black "Blakhina Viktoryia"]
[WhiteElo "1607"]
[BlackElo "1436"]
[Round "6.12"]
[Result "1-0"]
[TimeControl "5400+30"]

1. d4 {[%clk 1:30:57]} 1... Nf6 {[%clk 1:30:50]} 2. c4 {[%clk 1:31:25]} 2... e5
{[%clk 1:31:08]} 3. dxe5 {[%clk 1:31:52]} 3... Ng4 {[%clk 1:31:33]} 4. e3 {[%clk
1:32:19]} 4... Nxe5 {[%clk 1:31:55]} 5. f4 {[%clk 1:32:47]} 5... Ng6 {[%clk
1:29:14]} 6. Nc3 {[%clk 1:33:13]} 6... Nc6 {[%clk 1:24:10]} 7. Bd3 {[%clk
1:33:38]} 7... Bb4 {[%clk 1:12:28]} 8. Ne2 {[%clk 1:33:32]} 8... d6 {[%clk
1:11:19]} 9. a3 {[%clk 1:33:41]} 9... Bxc3+ {[%clk 1:11:42]} 10. Nxc3 {[%clk
1:34:06]} 10... Bd7 {[%clk 1:05:49]} 11. O-O {[%clk 1:34:29]} 11... O-O {[%clk
1:03:19]} 12. b4 {[%clk 1:31:13]} 12... a6 {[%clk 0:59:53]} 13. Bb2 {[%clk
1:31:26]} 13... Re8 {[%clk 0:56:17]} 14. Nd5 {[%clk 1:29:27]} 14... Nce7 {[%clk
0:54:08]} 15. Nf6+ {[%clk 1:12:05]} 15... Kh8 {[%clk 0:38:55]} 16. Qh5 {[%clk
1:12:09]} 16... h6 {[%clk 0:38:35]} 17. Nxe8 {[%clk 1:12:34]} 17... Qxe8 {[%clk
0:36:21]} 18. Qxh6+ {[%clk 1:12:59]} 18... Kg8 {[%clk 0:36:30]} 19. Qxg7# {[%clk
1:13:26]} 1-0

[Variant "Standard"]
[Site "Europe Echecs"]

[Event "Championnat du monde jeunes U10F"]
[Date "2024.11.20"]
[White "Foong, Livia"]
[Black "Afandi, Sadagul"]
[WhiteElo "1461"]
[BlackElo "1625"]
[Round "6.28"]
[Result "1/2-1/2"]
[TimeControl "5400+30"]

1. d4 {[%clk 1:30:57]} 1... d5 {[%clk 1:30:35]} 2. Nf3 {[%clk 1:31:15]} 2... Nf6
{[%clk 1:30:57]} 3. Bf4 {[%clk 1:31:35]} 3... c5 {[%clk 1:31:21]} 4. e3 {[%clk
1:31:49]} 4... Nc6 {[%clk 1:31:16]} 5. Be2 {[%clk 1:32:00]} 5... Bg4 {[%clk
1:31:37]} 6. Nbd2 {[%clk 1:31:48]} 6... cxd4 {[%clk 1:31:48]} 7. Nxd4 {[%clk
1:31:52]} 7... Bxe2 {[%clk 1:28:31]} 8. Nxe2 {[%clk 1:30:49]} 8... e5 {[%clk
1:25:15]} 9. Bg5 {[%clk 1:30:57]} 9... Be7 {[%clk 1:24:29]} 10. O-O {[%clk
1:31:12]} 10... O-O {[%clk 1:24:24]} 11. c4 {[%clk 1:30:32]} 11... d4 {[%clk
1:16:40]} 12. exd4 {[%clk 1:29:27]} 12... Nxd4 {[%clk 1:13:52]} 13. Nxd4 {[%clk
1:28:24]} 13... Qxd4 {[%clk 1:11:28]} 14. Qb3 {[%clk 1:28:04]} 14... b6 {[%clk
1:00:40]} 15. Be3 {[%clk 1:28:05]} 15... Qd7 {[%clk 1:00:12]} 16. Rfd1 {[%clk
1:27:56]} 16... Ng4 {[%clk 0:46:31]} 17. Nf3 {[%clk 1:27:29]} 17... Qc7 {[%clk
0:44:29]} 18. Qc2 {[%clk 1:26:43]} 18... Nxe3 {[%clk 0:39:04]} 19. fxe3 {[%clk
1:25:55]} 19... Rfd8 {[%clk 0:35:47]} 20. Qe4 {[%clk 1:25:05]} 20... f6 {[%clk
0:31:13]} 21. b3 {[%clk 1:23:49]} 21... Rxd1+ {[%clk 0:22:56]} 22. Rxd1 {[%clk
1:23:55]} 22... Rd8 {[%clk 0:23:12]} 23. Rd5 {[%clk 1:23:04]} 23... Rd7 {[%clk
0:20:00]} 24. Nd2 {[%clk 1:21:27]} 1/2-1/2

[Variant "Standard"]
[Site "Europe Echecs"]

[Event "Championnat du monde jeunes U10F"]
[Date "2024.11.20"]
[White "Gastaldo, Agathe"]
[Black "Mamarasulova, Yasmina"]
[WhiteElo "1589"]
[BlackElo "1444"]
[Round "6.35"]
[Result "1/2-1/2"]
[TimeControl "5400+30"]

1. e4 {[%clk 1:30:48]} 1... c5 {[%clk 1:30:54]} 2. Nf3 {[%clk 1:30:40]} 2... Nc6
{[%clk 1:31:17]} 3. d4 {[%clk 1:30:34]} 3... cxd4 {[%clk 1:31:42]} 4. Nxd4
{[%clk 1:30:20]} 4... g6 {[%clk 1:29:41]} 5. Nc3 {[%clk 1:29:32]} 5... Bg7
{[%clk 1:29:50]} 6. Be3 {[%clk 1:29:19]} 6... Nf6 {[%clk 1:30:09]} 7. Nxc6
{[%clk 1:28:36]} 7... bxc6 {[%clk 1:29:59]} 8. e5 {[%clk 1:27:26]} 8... Ng8
{[%clk 1:09:44]} 9. f4 {[%clk 1:25:26]} 9... Nh6 {[%clk 0:36:03]} 10. h3 {[%clk
1:07:24]} 10... Nf5 {[%clk 0:27:59]} 11. Bf2 {[%clk 1:03:53]} 11... h5 {[%clk
0:26:26]} 12. Qd2 {[%clk 1:01:38]} 12... Qc7 {[%clk 0:19:11]} 13. O-O-O {[%clk
0:53:33]} 13... Rb8 {[%clk 0:14:42]} 14. Ne4 Qb7 15. Qc3 1/2-1/2

[Variant "Standard"]
[Site "Europe Echecs"]

[Event "Championnat du monde jeunes U10F"]
[Date "2024.11.22"]
[White "Malcheva, Niya"]
[Black "Anistoroaei, Maria"]
[WhiteElo "1620"]
[BlackElo "1715"]
[Round "7.9"]
[Result "0-1"]
[TimeControl "5400+30"]

1. e4 {[%clk 1:30:58]} 1... c5 {[%clk 1:30:55]} 2. c3 {[%clk 1:31:24]} 2... e6
{[%clk 1:31:21]} 3. d4 {[%clk 1:31:48]} 3... d5 {[%clk 1:31:48]} 4. exd5 {[%clk
1:32:02]} 4... exd5 {[%clk 1:32:13]} 5. Bb5+ {[%clk 1:32:08]} 5... Nc6 {[%clk
1:32:38]} 6. Nf3 {[%clk 1:31:43]} 6... Bd6 {[%clk 1:33:02]} 7. dxc5 {[%clk
1:31:47]} 7... Bxc5 {[%clk 1:33:21]} 8. O-O {[%clk 1:32:08]} 8... Ne7 {[%clk
1:33:47]} 9. Nbd2 {[%clk 1:32:14]} 9... O-O {[%clk 1:34:06]} 10. Nb3 {[%clk
1:31:52]} 10... Bd6 {[%clk 1:32:59]} 11. Bg5 {[%clk 1:29:31]} 11... Bg4 {[%clk
1:30:27]} 12. Be2 {[%clk 1:29:41]} 12... Re8 {[%clk 1:28:26]} 13. Nfd4 {[%clk
1:29:35]} 13... Bxe2 {[%clk 1:28:10]} 14. Qxe2 {[%clk 1:28:08]} 14... Qc7 {[%clk
1:22:31]} 15. h3 {[%clk 1:17:58]} 15... Ng6 {[%clk 1:16:36]} 16. Qf3 {[%clk
1:14:48]} 16... Re5 {[%clk 1:05:43]} 17. Be3 {[%clk 1:11:49]} 17... a6 {[%clk
1:03:49]} 18. Rad1 {[%clk 1:09:10]} 18... Na5 {[%clk 0:52:56]} 19. Nxa5 {[%clk
1:03:35]} 19... Qxa5 {[%clk 0:49:29]} 20. a3 {[%clk 1:02:26]} 20... Rae8 {[%clk
0:41:46]} 21. Nf5 {[%clk 0:53:42]} 21... Bf8 {[%clk 0:40:55]} 22. Rd2 {[%clk
0:45:19]} 22... Qb5 {[%clk 0:18:53]} 23. Rfd1 {[%clk 0:37:10]} 23... Rd8 {[%clk
0:11:59]} 24. Nd4 {[%clk 0:34:43]} 24... Qd7 {[%clk 0:10:05]} 25. Nc2 {[%clk
0:32:44]} 25... Rf5 {[%clk 0:03:11]} 26. Qe2 {[%clk 0:32:34]} 26... a5 {[%clk
0:01:09]} 27. Bb6 {[%clk 0:32:03]} 27... Re8 {[%clk 0:00:54]} 28. Qg4 {[%clk
0:30:15]} 28... Ne5 {[%clk 0:00:53]} 29. Rxd5 {[%clk 0:26:32]} 29... Qe6 {[%clk
0:00:34]} 30. Qd4 {[%clk 0:23:24]} 30... Nc6 {[%clk 0:00:35]} 31. Qd2 {[%clk
0:20:47]} 31... Ne5 {[%clk 0:00:38]} 32. Qd4 {[%clk 0:13:31]} 32... Qg6 {[%clk
0:00:39]} 33. Kh1 {[%clk 0:11:13]} 33... Rg5 {[%clk 0:00:34]} 34. Ne3 {[%clk
0:10:21]} 34... Nc6 {[%clk 0:00:34]} 35. Rxg5 {[%clk 0:09:40]} 35... Qxg5 {[%clk
0:00:51]} 36. Qd5 {[%clk 0:07:44]} 36... Re5 {[%clk 0:00:52]} 37. Qf3 {[%clk
0:06:46]} 37... Rb5 {[%clk 0:00:42]} 38. Rd5 {[%clk 0:06:57]} 38... Ne5 {[%clk
0:00:34]} 39. Rxb5 {[%clk 0:06:21]} 39... Nxf3 {[%clk 0:00:52]} 40. Rxg5 {[%clk
0:06:47]} 40... Nxg5 {[%clk 0:01:20]} 41. Bxa5 {[%clk 0:07:10]} 41... Ne4 {[%clk
0:00:54]} 42. Kg1 {[%clk 0:07:23]} 42... Bc5 {[%clk 0:00:46]} 43. Bb4 {[%clk
0:07:23]} 43... Ba7 {[%clk 0:00:49]} 44. Kf1 {[%clk 0:07:36]} 44... g6 {[%clk
0:00:54]} 45. Ke2 {[%clk 0:07:28]} 45... f5 {[%clk 0:01:06]} 46. f3 {[%clk
0:07:46]} 46... Ng3+ {[%clk 0:01:11]} 47. Kd3 {[%clk 0:08:08]} 47... Nh5 {[%clk
0:01:05]} 48. Nd5 {[%clk 0:08:08]} 48... Kf7 {[%clk 0:00:53]} 49. Kc4 {[%clk
0:07:31]} 49... Ke6 {[%clk 0:00:57]} 50. g4 {[%clk 0:06:55]} 50... fxg4 {[%clk
0:00:40]} 51. fxg4 {[%clk 0:07:19]} 51... Ng3 {[%clk 0:00:50]} 52. Nc7+ {[%clk
0:07:32]} 52... Kf6 {[%clk 0:00:49]} 53. Nb5 {[%clk 0:07:18]} 53... Bf2 {[%clk
0:01:04]} 54. Bc5 {[%clk 0:07:15]} 54... Ne4 {[%clk 0:00:32]} 55. Bxf2 {[%clk
0:06:52]} 55... Nxf2 {[%clk 0:00:55]} 56. Nd6 {[%clk 0:07:17]} 56... Nxh3 {[%clk
0:00:39]} 57. Nxb7 {[%clk 0:07:43]} 57... h5 {[%clk 0:00:35]} 58. gxh5 {[%clk
0:08:06]} 58... gxh5 {[%clk 0:01:00]} 59. a4 {[%clk 0:08:32]} 59... h4 {[%clk
0:01:05]} 60. Nc5 {[%clk 0:08:34]} 60... Nf2 {[%clk 0:01:02]} 61. Nd7+ {[%clk
0:08:12]} 61... Kf5 {[%clk 0:01:17]} 62. a5 h3 {[%clk 0:01:35]} 63. a6 {[%clk
0:06:46]} 63... h2 {[%clk 0:01:52]} 64. a7 {[%clk 0:07:06]} 64... h1=Q {[%clk
0:01:53]} 65. Nb6 {[%clk 0:07:34]} 65... Qc6+ {[%clk 0:02:01]} 0-1

[Variant "Standard"]
[Site "Europe Echecs"]

[Event "Championnat du monde jeunes U10F"]
[Date "2024.11.22"]
[White "Mamarasulova, Yasmina"]
[Black "Macakova, Bianka"]
[WhiteElo "1444"]
[BlackElo "1610"]
[Round "7.33"]
[Result "1-0"]
[TimeControl "5400+30"]

1. d4 {[%clk 1:30:34]} 1... f5 {[%clk 1:30:53]} 2. Nf3 {[%clk 1:30:59]} 2... Nf6
{[%clk 1:30:36]} 3. g3 {[%clk 1:31:21]} 3... g6 {[%clk 1:30:27]} 4. Bg2 {[%clk
1:31:41]} 4... Bg7 {[%clk 1:30:03]} 5. O-O {[%clk 1:32:04]} 5... O-O {[%clk
1:29:59]} 6. b3 {[%clk 1:32:31]} 6... d6 {[%clk 1:28:49]} 7. Bb2 {[%clk
1:32:52]} 7... c6 {[%clk 1:23:36]} 8. c4 {[%clk 1:18:53]} 8... Qe8 {[%clk
1:20:20]} 9. Nc3 {[%clk 1:08:13]} 9... e5 {[%clk 1:12:05]} 10. dxe5 {[%clk
0:58:23]} 10... dxe5 {[%clk 1:08:59]} 11. e4 {[%clk 0:39:41]} 11... Na6 {[%clk
0:49:41]} 12. exf5 {[%clk 0:31:01]} 12... Bxf5 {[%clk 0:45:42]} 13. Re1 {[%clk
0:29:26]} 13... Rd8 {[%clk 0:37:17]} 14. Qe2 {[%clk 0:20:00]} 14... Ng4 {[%clk
0:27:10]} 15. Rad1 {[%clk 0:16:27]} 15... Rxd1 {[%clk 0:24:31]} 16. Rxd1 {[%clk
0:14:48]} 16... Rf7 {[%clk 0:15:55]} 17. h3 {[%clk 0:07:32]} 17... Nh6 {[%clk
0:13:46]} 18. Re1 {[%clk 0:07:33]} 18... Re7 {[%clk 0:11:58]} 19. g4 {[%clk
0:07:40]} 19... Bd7 {[%clk 0:10:03]} 20. Ne4 {[%clk 0:08:01]} 20... Nf7 {[%clk
0:08:21]} 21. Ba3 {[%clk 0:08:09]} 21... Re6 {[%clk 0:07:02]} 22. Nfg5 {[%clk
0:05:55]} 22... Nxg5 {[%clk 0:07:12]} 23. Nxg5 {[%clk 0:06:24]} 23... Rf6 {[%clk
0:07:08]} 24. Qxe5 {[%clk 0:06:39]} 24... Qxe5 {[%clk 0:06:14]} 25. Rxe5 {[%clk
0:20:00]} 25... Re6 {[%clk 0:07:12]} 26. Re1 Rf6 {[%clk 0:06:14]} 27. Re5 h6
{[%clk 0:01:29]} 28. Re7 {[%clk 0:04:47]} 28... hxg5 {[%clk 0:01:17]} 29. Rxd7
{[%clk 0:05:14]} 29... Rf7 {[%clk 0:00:56]} 30. Rxf7 {[%clk 0:04:53]} 30... Kxf7
{[%clk 0:01:19]} 31. Kf1 {[%clk 0:04:51]} 31... Nc7 {[%clk 0:00:52]} 32. Bc5
{[%clk 0:04:43]} 32... a6 {[%clk 0:00:52]} 33. Ke2 {[%clk 0:03:41]} 33... Ne6
{[%clk 0:00:49]} 34. Be3 {[%clk 0:03:48]} 34... Nf4+ {[%clk 0:00:37]} 1-0

[Variant "Standard"]
[Site "Europe Echecs"]

[Event "Championnat du monde jeunes U10F"]
[Date "2024.11.22"]
[White "Muradli, Sabira"]
[Black "Tykalova, Barbora"]
[WhiteElo "1430"]
[BlackElo "1596"]
[Round "7.35"]
[Result "0-1"]
[TimeControl "5400+30"]

1. e4 {[%clk 1:30:58]} 1... d5 {[%clk 1:30:51]} 2. exd5 {[%clk 1:31:23]} 2...
Qxd5 {[%clk 1:30:44]} 3. Nc3 {[%clk 1:31:47]} 3... Qa5 {[%clk 1:30:41]} 4. Bc4
{[%clk 1:32:08]} 4... c6 {[%clk 1:30:08]} 5. d3 {[%clk 1:32:28]} 5... Nf6 {[%clk
1:29:27]} 6. Ne2 {[%clk 1:31:55]} 6... Bf5 {[%clk 1:27:03]} 7. a4 {[%clk
1:30:19]} 7... e6 {[%clk 1:24:51]} 8. O-O {[%clk 1:30:36]} 8... Bd6 {[%clk
1:23:02]} 9. Ng3 {[%clk 1:30:20]} 9... Bg6 {[%clk 1:22:14]} 10. Be3 {[%clk
1:29:01]} 10... Qc7 {[%clk 1:20:35]} 11. Bg5 {[%clk 1:26:30]} 11... Nbd7 {[%clk
1:18:10]} 12. Qf3 {[%clk 1:24:54]} 12... Ne5 {[%clk 1:16:34]} 13. Qe2 {[%clk
1:24:27]} 13... Nxc4 {[%clk 1:14:33]} 14. dxc4 {[%clk 1:23:15]} 14... h5 {[%clk
1:09:02]} 15. Bxf6 {[%clk 1:22:42]} 15... gxf6 {[%clk 1:09:08]} 16. Qf3 {[%clk
1:20:57]} 16... f5 {[%clk 1:07:51]} 17. Rfe1 {[%clk 1:21:08]} 17... O-O-O {[%clk
1:05:43]} 18. h4 {[%clk 1:18:41]} 18... Be7 {[%clk 1:03:44]} 19. Nge2 {[%clk
1:06:10]} 19... Bxh4 {[%clk 1:01:38]} 20. Nf4 {[%clk 1:06:26]} 20... Rdg8 {[%clk
0:54:09]} 21. Rad1 {[%clk 0:59:37]} 21... e5 {[%clk 0:45:19]} 22. Nxg6 {[%clk
0:50:47]} 22... fxg6 {[%clk 0:45:35]} 23. Ne4 {[%clk 0:50:05]} 23... Be7 {[%clk
0:43:29]} 24. Nc3 {[%clk 1:18:41]} 24... Bh4 {[%clk 0:45:35]} 25. Ne4 {[%clk
0:50:05]} 25... Be7 {[%clk 0:43:29]} 26. Nc3 e4 {[%clk 0:40:46]} 27. Qh3 {[%clk
0:48:21]} 27... Qf4 {[%clk 0:38:46]} 28. Rxe4 {[%clk 0:47:37]} 28... Qc7 {[%clk
0:36:43]} 29. Re6 {[%clk 0:47:00]} 29... Kb8 {[%clk 0:34:44]} 30. Rde1 {[%clk
0:46:06]} 30... Bc5 {[%clk 0:32:27]} 31. R6e5 {[%clk 0:37:42]} 31... Qb6 {[%clk
0:30:54]} 32. Kh1 {[%clk 0:32:05]} 32... Bxf2 {[%clk 0:28:47]} 33. R1e2 {[%clk
0:27:38]} 33... Bd4 {[%clk 0:26:32]} 34. Re6 {[%clk 0:27:33]} 34... Qxb2 {[%clk
0:23:25]} 35. Nd1 {[%clk 0:21:59]} 35... Qc1 {[%clk 0:20:14]} 36. Qg3+ {[%clk
0:22:00]} 36... Ka8 {[%clk 0:20:00]} 37. Qe1 {[%clk 0:21:51]} 37... a6 {[%clk
0:18:57]} 38. c3 {[%clk 0:20:37]} 38... Bb6 {[%clk 0:16:54]} 39. Nb2 {[%clk
0:11:44]} 39... Bd4 {[%clk 0:20:00]} 40. Nd1 {[%clk 0:20:37]} 40... Bb6 {[%clk
0:16:54]} 41. Nb2 Qg5 {[%clk 0:14:46]} 42. Nd3 {[%clk 0:11:59]} 42... h4 {[%clk
0:12:40]} 43. Re8+ {[%clk 0:11:03]} 43... Rxe8 {[%clk 0:10:55]} 44. Rxe8+ {[%clk
0:11:28]} 44... Rxe8 {[%clk 0:11:19]} 45. Qxe8+ {[%clk 0:11:51]} 45... Ka7
{[%clk 0:11:12]} 46. Qe5 {[%clk 0:10:34]} 46... Qd2 {[%clk 0:09:54]} 47. Ne1
{[%clk 0:10:19]} 47... Bf2 {[%clk 0:10:04]} 48. Nf3 {[%clk 0:09:24]} 48... Qd1+
{[%clk 0:10:23]} 49. Ne1 {[%clk 0:09:47]} 49... Qxe1+ {[%clk 0:10:49]} 50. Qxe1
{[%clk 0:10:12]} 50... Bxe1 {[%clk 0:11:09]} 51. Kh2 {[%clk 0:10:39]} 51... Bxc3
{[%clk 0:11:29]} 52. Kh3 {[%clk 0:11:04]} 52... g5 {[%clk 0:11:51]} 53. a5
{[%clk 0:11:30]} 53... Bxa5 {[%clk 0:12:13]} 54. g4 {[%clk 0:11:56]} 54... fxg4+
{[%clk 0:12:36]} 55. Kxg4 {[%clk 0:12:19]} 55... Kb6 {[%clk 0:13:01]} 56. c5+
{[%clk 0:12:43]} 56... Kxc5 {[%clk 0:13:17]} 57. Kh3 {[%clk 0:13:08]} 57... b5
{[%clk 0:13:38]} 58. Kh2 {[%clk 0:13:33]} 58... b4 {[%clk 0:14:05]} 59. Kh3
{[%clk 0:13:59]} 59... b3 {[%clk 0:14:30]} 60. Kh2 {[%clk 0:14:25]} 60... b2
{[%clk 0:14:53]} 61. Kh3 {[%clk 0:14:52]} 61... b1=Q {[%clk 0:15:18]} 62. Kh2
{[%clk 0:15:15]} 62... Qd3 {[%clk 0:15:34]} 63. Kg2 {[%clk 0:15:40]} 63... Be1
{[%clk 0:15:33]} 64. Kh1 {[%clk 0:16:02]} 64... Qf1+ {[%clk 0:15:52]} 65. Kh2
{[%clk 0:15:16]} 65... Bg3# {[%clk 0:16:16]} 0-1

[Variant "Standard"]
[Site "Europe Echecs"]

[Event "Championnat du monde jeunes U10F"]
[Date "2024.11.23"]
[White "Isakhanyan, Nare"]
[Black "Peng, Jingyi(GD)"]
[WhiteElo "1540"]
[BlackElo "1720"]
[Round "8.9"]
[Result "0-1"]
[TimeControl "5400+30"]

1. d4 {[%clk 1:30:58]} 1... Nf6 {[%clk 1:30:57]} 2. c4 {[%clk 1:31:20]} 2... e6
{[%clk 1:31:22]} 3. Nc3 {[%clk 1:31:45]} 3... d5 {[%clk 1:31:50]} 4. cxd5 {[%clk
1:32:04]} 4... exd5 {[%clk 1:32:15]} 5. Bg5 {[%clk 1:32:31]} 5... Be7 {[%clk
1:32:27]} 6. e3 {[%clk 1:32:46]} 6... c6 {[%clk 1:32:50]} 7. Bd3 {[%clk
1:33:08]} 7... O-O {[%clk 1:33:10]} 8. Qc2 {[%clk 1:33:25]} 8... h6 {[%clk
1:33:18]} 9. Bh4 {[%clk 1:32:38]} 9... Be6 {[%clk 1:32:52]} 10. Nf3 {[%clk
1:32:53]} 10... Nbd7 {[%clk 1:33:10]} 11. O-O {[%clk 1:32:40]} 11... Rc8 {[%clk
1:24:04]} 12. Ne5 {[%clk 1:26:43]} 12... Nxe5 {[%clk 1:23:30]} 13. dxe5 {[%clk
1:27:05]} 13... Nd7 {[%clk 1:23:56]} 14. Bxe7 {[%clk 1:27:26]} 14... Qxe7 {[%clk
1:24:21]} 15. f4 {[%clk 1:27:32]} 15... f5 {[%clk 1:24:40]} 16. Ne2 {[%clk
1:23:45]} 16... c5 {[%clk 1:23:49]} 17. Ng3 {[%clk 1:23:39]} 17... Qf7 {[%clk
1:21:06]} 18. Rfd1 {[%clk 1:21:46]} 18... a6 {[%clk 1:16:47]} 19. a4 {[%clk
1:20:59]} 19... c4 {[%clk 1:16:32]} 20. Be2 {[%clk 1:21:12]} 20... Nc5 {[%clk
1:16:48]} 21. Bf3 {[%clk 1:10:37]} 21... Nb3 {[%clk 1:12:44]} 22. Rab1 {[%clk
1:07:25]} 22... Rc5 {[%clk 1:10:23]} 23. Ne2 {[%clk 1:06:09]} 23... b5 {[%clk
1:01:34]} 24. axb5 {[%clk 1:05:55]} 24... axb5 {[%clk 1:01:57]} 25. Nd4 {[%clk
1:05:17]} 25... Nxd4 {[%clk 1:01:13]} 26. Rxd4 {[%clk 1:04:41]} 26... Ra8 {[%clk
0:56:22]} 27. Qd2 {[%clk 0:58:04]} 27... Kh7 {[%clk 0:51:11]} 28. Rd1 {[%clk
0:52:21]} 28... Qa7 {[%clk 0:45:27]} 29. h3 {[%clk 0:44:43]} 29... Qb6 {[%clk
0:44:39]} 30. Kh2 {[%clk 0:43:00]} 30... Ra2 {[%clk 0:37:38]} 31. Qc1 {[%clk
0:35:42]} 31... Qb7 {[%clk 0:37:14]} 32. b4 {[%clk 0:34:24]} 32... Rc8 {[%clk
0:36:17]} 33. Qb1 {[%clk 0:31:27]} 33... Ra3 {[%clk 0:28:05]} 34. Bxd5 {[%clk
0:31:06]} 34... Bxd5 {[%clk 0:28:04]} 35. Rxd5 {[%clk 0:29:48]} 35... Rf8 {[%clk
0:28:28]} 36. e6 {[%clk 0:24:12]} 36... Rf6 {[%clk 0:24:39]} 37. Rxf5 {[%clk
0:09:24]} 37... Rg6 {[%clk 0:25:00]} 38. e4 {[%clk 0:07:26]} 38... Rd3 {[%clk
0:21:16]} 39. Re5 {[%clk 0:06:51]} 39... Qb6 {[%clk 0:18:50]} 40. Rxd3 {[%clk
0:05:53]} 40... Qf2 {[%clk 0:19:08]} 41. Qg1 {[%clk 0:01:36]} 41... Qxf4+ {[%clk
0:19:33]} 42. g3 {[%clk 0:02:00]} 42... Qxe5 {[%clk 0:19:49]} 43. Rd5 {[%clk
0:01:11]} 43... Qxe4 {[%clk 0:20:03]} 44. Rxb5 {[%clk 0:01:32]} 44... c3 {[%clk
0:19:46]} 45. Qg2 {[%clk 0:00:42]} 45... Qxe6 {[%clk 0:19:56]} 46. Rc5 {[%clk
0:00:40]} 46... Qb3 {[%clk 0:19:50]} 47. b5 {[%clk 0:00:50]} 47... Qb4 {[%clk
0:19:53]} 48. Rc7 {[%clk 0:00:45]} 48... Qb2 {[%clk 0:19:13]} 49. Kh1 {[%clk
0:00:33]} 49... Re6 {[%clk 0:18:45]} 50. Qf1 {[%clk 0:00:42]} 50... Qc2 {[%clk
0:17:16]} 51. Rxc3 {[%clk 0:00:34]} 51... Qxc3 {[%clk 0:17:32]} 52. Qf5+ {[%clk
0:01:00]} 52... Rg6 {[%clk 0:17:56]} 53. Qf4 Qe5 0-1

[Variant "Standard"]
[Site "Europe Echecs"]